[Event "11th Festival Palmanova-A 2022"]
[Site "Strassoldo"]
[Date "2022.12.10"]
[Round "4.8"]
[White "Zuttioni, Federico"]
[Black "Pozzari, Simone"]
[Result "1-0"]
[ECO "C83"]
[WhiteElo "2165"]
[BlackElo "2139"]
[Annotator "TA"]
[PlyCount "103"]
[EventDate "2022.12.08"]
[EventType "swiss"]
[EventCountry "ITA"]
[SourceTitle "playchess.com"]
[Source "ChessBase"]
[SourceQuality "1"]
[TimeControl "5400+30"]

{[%evp 21,103,15,81,34,37,36,37,20,48,42,72,59,66,59,72,20,6,13,82,68,116,105,258,252,260,251,239,237,253,241,236,125,156,162,205,184,173,167,137,145,497,453,448,435,419,417,427,433,412,412,374,308,317,300,490,453,12827,12827,5289,2418,2706,2830,1546,1056,12838,12838,12840,12837,12840,12835,12840,12837,12841,12841,12841,12842,12842,12843,12843,12841,12843,12843,12842,12839]} 1. e4 {[%emt 0:00:03]} e5 {[%emt 0:01:58]} 2. Nf3 {[%emt 0:00:13]} Nc6 {[%emt 0:00:10]} 3. Bb5 {[%emt 0:00:43]} a6 {[%emt 0:00:07]} 4. Ba4 {[%emt 0:00:06]} Nf6 {[%emt 0:00:05]} 5. O-O {[%emt 0:00:14]} Nxe4 {[%emt 0:00:11]} 6. d4 {[%emt 0:00:41]} b5 {[%emt 0:00:05]} 7. Bb3 {[%emt 0:00:06]} d5 {[%emt 0:00:04]} 8. dxe5 {[%emt 0:00:12]} Be6 {[%emt 0:00:07]} 9. Be3 {[%emt 0:00:31]} Be7 {[%emt 0:07:20]} 10. c3 {[%emt 0:00:26]} O-O {[%emt 0:26:51]} 11. Nbd2 {[%emt 0:02:59]} f5 {[%emt 0:15:41]} (11... Bg4 $11 {remains equal.}) 12. Nd4 {[%emt 0:19:53] C83: Open Ruy Lopez: 9 c3 Be7.} (12. exf6 $16 Nxf6 13. Ng5) 12... Nxd4 $14 {[%emt 0:01:56]} 13. cxd4 {[%emt 0:01:55] [#]} a5 $146 {[%emt 0:03:05]} ({Predecessor:} 13... Qd7 14. f4 Rfd8 15. Rc1 Rac8 16. Nf3 c6 17. Qe2 h6 18. Rc2 Rf8 19. Ne1 Qe8 {½-½ (60) Arjun,V (2283)-Kumar,N (2328) Charlotte 2020}) 14. f3 {[%emt 0:13:05] Prevents a4. White is slightly better.} Nxd2 {[%emt 0:02:16]} 15. Qxd2 {[%emt 0:00:18]} Bb4 {[%emt 0:04:27]} 16. Qc1 {[%emt 0:01:44]} Qd7 {[%emt 0:10:28] Prevents Qc6.} 17. a3 {[%emt 0:03:48]} Be7 {[%emt 0:00:27]} 18. Bg5 {[%emt 0:01:01]} (18. a4 $16) 18... Bxg5 $11 {[%emt 0:02:45]} 19. Qxg5 {[%emt 0:00:07]} f4 {[%emt 0:00:16]} (19... a4 $11 20. Ba2 Ra6) 20. Rac1 $16 {[%emt 0:01:32]} Rf5 {[%emt 0:04:58]} (20... a4 $14 {should be considered.} 21. Bc2 c6) 21. Qh4 {[%emt 0:00:29] aiming for Bc2. White has more active pieces.} Qf7 $2 {[%emt 0:00:16] [#]} (21... g6 $16 {keeps fighting.}) 22. Rc5 $18 {[%emt 0:02:54]} Rh5 {[%emt 0:01:32]} 23. Qf2 {[%emt 0:02:59]} Rh6 {[%emt 0:03:24]} 24. Rfc1 {[%emt 0:09:39]} (24. Rxb5 $6 c6 25. Rc5 Qh5 $16) 24... Qh5 {[%emt 0:01:56]} 25. h4 {[%emt 0:02:36]} (25. Rxc7 Qxh2+ 26. Kf1 a4 $16) (25. Bxd5 Bxd5 26. Rxd5 c6 $14) 25... Rd8 {[%emt 0:03:25]} 26. Rxc7 {[%emt 0:12:18]} (26. Rxb5 $18 Qe8 27. Rbc5) 26... g5 $16 {[%emt 0:00:32]} 27. R1c6 {[%emt 0:07:17] [#] Black must now prevent Rd6.} g4 {[%emt 0:01:27]} 28. fxg4 {[%emt 0:01:52]} Qxg4 {[%emt 0:00:07]} 29. Rd6 {[%emt 0:03:28]} Rxd6 {[%emt 0:01:49]} 30. exd6 $40 {[%emt 0:00:08][%cal Ob3d5][%mdl 128] Bxd5! is the strong threat. White attacks with force.} f3 $2 {[%emt 0:04:50][%mdl 8192]} (30... Kf8 $16 {is a better chance.}) 31. d7 {[%emt 0:02:00]} (31. Qxf3 $2 {loses.} Qxh4 $19) 31... Bxd7 {[%emt 0:00:19]} 32. Bxd5+ {[%emt 0:00:10]} ({Less strong is} 32. Qxf3 Qxd4+ 33. Qf2 (33. Kf1 $2 Rf6 $19) 33... Qxf2+ 34. Kxf2 Be6 $16) 32... Be6 {[%emt 0:00:43]} 33. Bxf3 {[%emt 0:02:08]} Qxh4 {[%emt 0:02:17]} 34. Qxh4 {[%emt 0:00:42]} Rxh4 $18 {[%emt 0:00:02][%mdl 4096] Endgame KRB-KRB} 35. d5 {[%emt 0:00:30]} Bf5 {[%emt 0:00:45]} 36. Rc5 {[%emt 0:02:42]} Bd7 {[%emt 0:00:18]} 37. Be2 {[%emt 0:02:28]} Kf8 $2 {[%emt 0:01:15]} (37... b4 38. Rxa5 Kf7) 38. Bxb5 {[%emt 0:00:20] White is clearly winning.} Bxb5 {[%emt 0:00:11]} (38... Bf5 $142 39. Bc6 Ke7 40. Rxa5 Kd6) 39. Rxb5 {[%emt 0:00:04] KR-KR} a4 {[%emt 0:00:02]} 40. Rb4 {[%emt 0:01:14]} Rh5 {[%emt 0:00:17]} 41. Rxa4 {[%emt 0:00:24]} Rxd5 {[%emt 0:00:02]} 42. Rf4+ {[%emt 0:00:51]} Ke7 {[%emt 0:00:25]} 43. b4 {[%emt 0:00:42][%cal Bb2b4,Bb4b5][%mdl 32]} h5 {[%emt 0:00:10]} 44. Rf3 {[%emt 0:00:15]} Rd4 {[%emt 0:00:26]} 45. Kf2 {[%emt 0:00:49]} h4 {[%emt 0:00:25]} 46. Rb3 {[%emt 0:01:16]} Rf4+ {[%emt 0:00:21]} 47. Kg1 {[%emt 0:00:27]} Kd6 {[%emt 0:00:04]} 48. b5 {[%emt 0:00:44]} Kc7 {[%emt 0:00:51]} 49. Rb4 {[%emt 0:00:16]} Rf5 {[%emt 0:00:07]} 50. a4 {[%emt 0:00:25]} Rh5 {[%emt 0:00:08]} 51. Kh2 {[%emt 0:00:33]} Kb6 {[%emt 0:00:05]} 52. Kh3 {[%emt 0:00:08] Weighted Error Value: White=0.16 (very precise) /Black=0.43} 1-0

[Event "11th Festival Palmanova-A 2022"]
[Site "Strassoldo"]
[Date "2022.12.10"]
[Round "4.9"]
[White "Hercegovac, Neven"]
[Black "Kalosha, Zhiulien Oleksii"]
[Result "0-1"]
[ECO "D45"]
[WhiteElo "2230"]
[BlackElo "2092"]
[Annotator "TA"]
[PlyCount "74"]
[EventDate "2022.12.08"]
[EventType "swiss"]
[EventCountry "ITA"]
[SourceTitle "playchess.com"]
[Source "ChessBase"]
[SourceQuality "1"]
[TimeControl "5400+30"]

{[%evp 22,74,47,19,22,0,0,0,26,0,8,0,0,0,0,-6,-45,-84,-62,-61,-45,-53,-60,-159,-162,-166,-159,-158,-164,-156,-161,-153,-159,-157,-153,-191,-168,-230,-239,-231,-239,-230,-226,-974,-960,-952,-508,-508,-501,-487,-487,-585,-571,-531,-522]} 1. d4 {[%emt 0:07:44]} d5 {[%emt 0:00:12]} 2. c4 {[%emt 0:00:48]} e6 {[%emt 0:00:20]} 3. Nf3 {[%emt 0:00:11]} c6 {[%emt 0:00:42]} 4. e3 {[%emt 0:00:21]} Nf6 {[%emt 0:00:37]} 5. Nc3 {[%emt 0:00:07]} Nbd7 {[%emt 0:00:26]} 6. Be2 {[%emt 0:00:08]} Bd6 {[%emt 0:04:05]} 7. O-O {[%emt 0:00:23]} O-O {[%emt 0:03:15]} 8. b3 {[%emt 0:00:09]} Qe7 {[%emt 0:08:35]} 9. Bb2 {[%emt 0:00:36]} dxc4 {[%emt 0:22:26]} 10. bxc4 {[%emt 0:01:02]} e5 {[%emt 0:02:01]} 11. Qc2 {[%emt 0:07:00]} Re8 {[%emt 0:01:17]} 12. Rae1 {[%emt 0:17:22]} b6 {[%emt 0:29:50] D45: Semi-Slav: 5 e3.} 13. Ne4 {[%emt 0:26:20]} Nxe4 {[%emt 0:13:10]} 14. Qxe4 {[%emt 0:00:03] [#]} Bb7 $146 {[%emt 0:01:49] The position is equal.} (14... Nf6 $5 {[%cal Rf6e4]} 15. Qxc6 Bd7 $11) ({Predecessor:} 14... Nf6 15. Qh4 e4 16. Ne5 Bxe5 17. dxe5 Ng4 18. Qxe7 Rxe7 19. Rd1 Bf5 20. Rd6 Nxe5 21. Rfd1 Nd3 {½-½ (21) Tal,M (2630)-Van der Wiel,J (2555) Wijk aan Zee 1988}) 15. Rd1 {[%emt 0:01:23][%cal Oc4c5]} ({Not} 15. Bd3 $2 Nf6 16. Qh4 e4 $19) 15... Nf6 {[%emt 0:01:56] Prevents c5.} 16. Qh4 {[%emt 0:00:58]} e4 {[%emt 0:00:10]} 17. Ne5 {[%emt 0:01:48]} c5 {[%emt 0:01:06]} 18. f4 {[%emt 0:13:24]} exf3 {[%emt 0:00:45]} 19. gxf3 {[%emt 0:00:57]} cxd4 {[%emt 0:02:17]} 20. exd4 {[%emt 0:00:20]} Nd7 {[%emt 0:00:12]} 21. Qxe7 {[%emt 0:04:02]} Rxe7 {[%emt 0:00:06]} 22. Rfe1 {[%emt 0:06:27] White is now going downhill.} ({White should play} 22. f4 $15) 22... Nxe5 $17 {[%emt 0:00:53]} 23. dxe5 {[%emt 0:00:05]} Bxe5 {[%emt 0:00:08]} 24. Bf1 {[%emt 0:01:35] [#]} Bd6 {[%emt 0:00:09][%mdl 512]} 25. Rxe7 {[%emt 0:01:43]} Bxe7 {[%emt 0:00:05]} 26. Rd7 {[%emt 0:00:11]} Bc5+ {[%emt 0:00:07]} (26... Bxf3 $2 27. Rxe7 Kf8 28. Ba3 $18) 27. Kg2 {[%emt 0:00:14]} Bc6 {[%emt 0:00:11]} 28. Rc7 {[%emt 0:01:22]} Ba4 {[%emt 0:00:10]} 29. Be5 {[%emt 0:00:38] Against Bd6} (29. Bd3 {was worth a try.}) 29... f6 $19 {[%emt 0:04:09]} 30. Bf4 {[%emt 0:00:09]} g5 {[%emt 0:01:03]} 31. Bg3 {[%emt 0:00:11]} Rd8 {[%emt 0:00:08] Inhibits Bd3.} 32. Rxa7 $2 {[%emt 0:01:27] [#]} (32. Be1) 32... Rd2+ {[%emt 0:00:07] Black is clearly winning.} 33. Kh3 {[%emt 0:00:07]} Bd7+ {[%emt 0:00:05]} ({Weaker is} 33... Rxa2 34. Bd3 $15) 34. Rxd7 {[%emt 0:00:36]} Rxd7 {[%emt 0:00:05]} 35. Kg4 {[%emt 0:00:06]} Kf7 {[%emt 0:00:22] ...Rd1 is the strong threat.} 36. Kf5 {[%emt 0:00:11]} Rd1 {[%emt 0:01:06] Against f4} 37. Bh3 {[%emt 0:00:16]} h5 {[%emt 0:00:33] Weighted Error Value: White=0.54/Black=0.25 (precise)} 0-1

[Event "11th Festival Palmanova-A 2022"]
[Site "Strassoldo"]
[Date "2022.12.10"]
[Round "4.10"]
[White "Negro, Roberto"]
[Black "Bardone, Lorenzo"]
[Result "1/2-1/2"]
[ECO "D05"]
[WhiteElo "2117"]
[BlackElo "2215"]
[Annotator "TA"]
[PlyCount "85"]
[EventDate "2022.12.08"]
[EventType "swiss"]
[EventCountry "ITA"]
[SourceTitle "playchess.com"]
[Source "ChessBase"]
[SourceQuality "1"]
[TimeControl "5400+30"]

{[%evp 9,85,0,0,0,15,0,0,0,0,0,0,-10,-18,-15,-3,-21,28,20,0,7,19,3,22,18,19,10,22,13,94,37,35,20,13,13,34,32,59,46,39,45,61,41,45,41,63,22,45,47,52,49,82,72,75,70,84,84,84,84,110,99,105,0,0,0,0,0,18,0,121,67,83,59,86,0,0,0,0,0]} 1. Nf3 {[%emt 0:02:50]} d5 {[%emt 0:00:08]} 2. d4 {[%emt 0:04:35]} Nf6 {[%emt 0:00:07]} 3. e3 {[%emt 0:00:24]} c5 {[%emt 0:00:12]} 4. c3 {[%emt 0:01:12]} Nc6 {[%emt 0:00:59]} 5. Nbd2 {[%emt 0:01:56]} cxd4 {[%emt 0:07:02]} 6. exd4 {[%emt 0:00:31] D05: Colle System with ...e6.} Bg4 {[%emt 0:00:26]} 7. Be2 {[%emt 0:07:58]} e6 {[%emt 0:00:59]} 8. O-O {[%emt 0:00:07]} Bd6 {[%emt 0:04:00]} 9. Re1 {[%emt 0:00:07]} Qc7 {[%emt 0:02:38]} 10. Nf1 {[%emt 0:00:20]} O-O {[%emt 0:01:47]} 11. Ng3 {[%emt 0:01:30]} Rab8 {[%emt 0:05:51] [#]} 12. Bd3 $146 {[%emt 0:09:14]} ({Predecessor:} 12. a4 a6 13. Bd3 h6 14. h3 Bxg3 15. hxg4 Bf4 16. g5 Ng4 17. Bxf4 Qxf4 18. g3 {1-0 (38) Ratkovic,M (2359)-Radovanovic,M (2003) Belgrade 2014}) 12... e5 {[%emt 0:33:12]} (12... Rbe8 $142) 13. dxe5 $1 $11 {[%emt 0:01:09]} Nxe5 {[%emt 0:01:52]} 14. Be2 {[%emt 0:00:11]} Rfe8 {[%emt 0:03:28]} 15. Nxe5 {[%emt 0:09:19]} (15. Nd4 {feels hotter.} a6 16. Ndf5 Bc5 17. Be3) 15... Bxe2 {[%emt 0:00:32]} 16. Rxe2 {[%emt 0:00:27] [#] Strongly threatening Nf3.} Bxe5 {[%emt 0:01:27]} 17. Be3 {[%emt 0:03:27]} b5 {[%emt 0:03:21]} 18. Bd4 {[%emt 0:00:41]} Ne4 {[%emt 0:02:12]} (18... Bxd4 $11 19. Rxe8+ Rxe8 20. Qxd4 a6) 19. Nf1 {[%emt 0:09:07]} ({Better is} 19. Bxe5 $16 Rxe5 20. Qd4) 19... Bxd4 $14 {[%emt 0:04:04]} 20. Qxd4 {[%emt 0:00:44]} Qc4 {[%emt 0:00:30]} 21. Qd1 {[%emt 0:03:43]} (21. Rae1 {simplifies} Qxd4 22. cxd4 Kf8 23. Ne3) 21... Qc5 {[%emt 0:06:24]} (21... d4 $5) 22. Ne3 {[%emt 0:04:56][%cal Bf1e3,Be3c2,Bc2d4][%mdl 32]} Red8 {[%emt 0:01:26]} 23. Nc2 {[%emt 0:01:48]} a5 {[%emt 0:00:43]} 24. a3 {[%emt 0:01:01]} Rd6 {[%emt 0:01:50]} 25. Qd4 {[%emt 0:02:19]} Qxd4 {[%emt 0:03:30]} 26. Nxd4 {[%emt 0:00:06]} g6 {[%emt 0:00:15]} 27. Nc2 {[%emt 0:01:18]} f5 {[%emt 0:01:50][%cal Ob5b4]} 28. Rae1 {[%emt 0:03:41]} Rd7 {[%emt 0:01:20]} 29. Nd4 {[%emt 0:00:50]} Kf8 {[%emt 0:02:32]} 30. f3 {[%emt 0:02:19]} Nc5 {[%emt 0:02:48]} 31. Rd1 {[%emt 0:03:59]} Rb6 {[%emt 0:01:03]} 32. b4 {[%emt 0:03:54]} axb4 {[%emt 0:00:02]} 33. cxb4 {[%emt 0:00:06]} Nb7 {[%emt 0:00:53]} 34. Rc1 {[%emt 0:02:20]} Kf7 {[%emt 0:02:49]} 35. Nc6 {[%emt 0:03:02] White is much more active.} (35. Re3 $16) 35... Kf6 $1 $11 {[%emt 0:00:34]} 36. Ne5 {[%emt 0:00:26]} Re7 {[%emt 0:00:39]} 37. Rce1 {[%emt 0:00:56][%cal Oe5g4] And now Ng4+! would win.} Rc7 {[%emt 0:00:57]} (37... Rbe6 $5 {[%cal Re6e5]} 38. Nd7+ Kf7 39. Ne5+ Kf6 40. Nd7+ Kf7 41. Ne5+ Kf6 $11) 38. Nd3 {[%emt 0:01:09]} g5 {[%emt 0:01:38] [#] Prevents Nf4.} (38... Nd8 $11 {keeps the balance.}) 39. Re5 {[%emt 0:02:27]} (39. h4 $1 $16) 39... Rc3 $14 {[%emt 0:00:59]} 40. Rxd5 {[%emt 0:00:17] Hoping for f4.} Rd6 {[%emt 0:01:49] Prevents f4.} 41. Rxd6+ {[%emt 0:00:51]} (41. Rxb5 $16 {aiming for Nf2.} Rcxd3 42. Rxb7) 41... Nxd6 $11 {[%emt 0:00:05]} 42. Nc5 {[%emt 0:00:06] Black must now prevent Re6+.} Nc4 {[%emt 0:00:17]} 43. a4 {[%emt 0:14:37] Weighted Error Value: White=0.15 (very precise) /Black=0.18 (very precise)} 1/2-1/2

[Event "11th Festival Palmanova-A 2022"]
[Site "Strassoldo"]
[Date "2022.12.10"]
[Round "4.11"]
[White "Urbani, Gabriel"]
[Black "Vincenti, Leonardo"]
[Result "1-0"]
[ECO "B90"]
[WhiteElo "2110"]
[BlackElo "1910"]
[Annotator "TA"]
[PlyCount "115"]
[EventDate "2022.12.08"]
[EventType "swiss"]
[EventCountry "ITA"]
[SourceTitle "playchess.com"]
[Source "ChessBase"]
[SourceQuality "1"]
[TimeControl "5400+30"]

{[%evp 11,115,-18,8,9,31,7,30,14,13,12,22,0,0,-35,-34,-60,-18,-35,-37,-33,-4,-45,-38,-43,-45,-45,28,-96,-82,-95,-55,-139,-152,-169,-167,-214,-118,-147,-127,-331,-145,-143,0,0,0,0,0,0,14,16,12,8,62,59,130,124,122,132,184,183,183,185,250,230,198,103,118,114,149,96,143,131,260,260,225,237,336,310,575,575,560,552,485,492,481,458,879,878,1224,1224,1612,1609,29969,29960,29977,29978,29977,29978,29978,29979,29980,29981,29981,29982,29984,29985]} 1. e4 {[%emt 0:00:04]} c5 {[%emt 0:00:01]} 2. Nf3 {[%emt 0:00:13]} d6 {[%emt 0:00:01]} 3. d4 {[%emt 0:00:12]} cxd4 {[%emt 0:00:02]} 4. Nxd4 {[%emt 0:00:12]} Nf6 {[%emt 0:00:02]} 5. Nc3 {[%emt 0:00:12]} a6 {[%emt 0:00:01]} 6. Rg1 {[%emt 0:01:11]} e5 {[%emt 0:00:13]} 7. Nb3 {[%emt 0:00:09] B90: Sicilian Najdorf: Unusual White 6th moves, 6 Be3 Ng4 and 6 Be3 e5.} h5 {[%emt 0:00:14] Inhibits g4.} 8. Bg5 {[%emt 0:02:00]} Be7 {[%emt 0:01:05]} 9. Qd2 {[%emt 0:01:57] White has an edge.} Be6 {[%emt 0:00:18]} 10. O-O-O {[%emt 0:01:50]} Nbd7 {[%emt 0:02:48]} 11. f3 {[%emt 0:04:56]} b5 {[%emt 0:00:54] [#]} 12. Bxf6 $146 {[%emt 0:04:37]} ({Predecessor:} 12. h4 Rc8 13. Kb1 Qb6 14. Be3 Qb7 15. Be2 Nb6 16. Bxb6 Qxb6 17. Nd5 Nxd5 18. exd5 {1-0 (47) Szabo,B (1993)-Shankar,G Budapest 2006}) 12... Nxf6 {[%emt 0:00:28]} 13. Kb1 {[%emt 0:00:44]} Rc8 {[%emt 0:05:10]} 14. Nd5 {[%emt 0:02:38]} (14. a3 {seems wilder.} O-O 15. g4 hxg4 16. fxg4 Bxg4 17. Qg5) 14... Nxd5 {[%emt 0:01:42]} 15. exd5 {[%emt 0:00:10]} Bg5 {[%emt 0:09:24]} 16. Qf2 {[%emt 0:04:06]} (16. Qb4 {keeps more tension.} Bf5 17. Bd3 Bxd3 18. cxd3 Qb6 19. h4) 16... Bf5 {[%emt 0:01:15] A strong pair of Bishops.} 17. Bd3 {[%emt 0:00:52]} Bxd3 {[%emt 0:00:48]} 18. Rxd3 {[%emt 0:00:13]} a5 {[%emt 0:00:49]} (18... O-O $15) 19. Re1 {[%emt 0:07:54]} (19. Qe1 $1 $11) 19... O-O $36 {[%emt 0:01:08][%mdl 2048] Black is on the roll.} 20. g3 {[%emt 0:04:45]} f5 {[%emt 0:10:31]} 21. Qg2 {[%emt 0:04:55]} ({White should try} 21. a3 $15) 21... a4 {[%emt 0:09:34]} 22. Nc1 {[%emt 0:02:36]} Rc4 {[%emt 0:02:36]} 23. Rdd1 {[%emt 0:11:08]} (23. a3 $142) 23... Qc7 {[%emt 0:06:33]} (23... a3 $19 {aiming for ...axb2.} 24. b3 Qa5 $1) 24. Nd3 {[%emt 0:05:23][%cal Of3f4]} Rc8 {[%emt 0:01:11][%cal Rc4c2]} 25. Re2 {[%emt 0:02:30]} (25. c3 $17) 25... b4 {[%emt 0:02:48]} (25... a3 $1 $19 {[%cal Oe5e4] has better winning chances. Threatens to win with ...e4!} 26. b3 (26. h4 $2 Bf6 $19) 26... Rd4) 26. f4 {[%emt 0:05:21] Against e4} exf4 {[%emt 0:01:31]} (26... Bf6 $1 $17 {White must now prevent ...e4.} 27. Nxe5 dxe5) 27. gxf4 $11 {[%emt 0:00:13]} Bf6 {[%emt 0:01:13]} 28. Qg6 {[%emt 0:02:29]} Re4 {[%emt 0:02:33] Inhibits Re8+.} (28... Rxc2 $2 29. Re8+ Rxe8 30. Qxe8+ Kh7 31. Qxh5+ Kg8 32. Re1 $18 (32. Qxf5 Rxh2 33. Rc1 Qe7 $11)) 29. Rg2 {[%emt 0:03:40]} b3 {[%emt 0:06:23]} 30. cxb3 {[%emt 0:01:26] Really sharp!} axb3 {[%emt 0:00:46]} 31. axb3 {[%emt 0:01:00]} (31. Qxf6 $2 {is the wrong capture.} Qc2+ $3 {[%mdl 512]} 32. Rxc2 bxc2+ 33. Kc1 cxd1=Q+ 34. Kxd1 gxf6 $19) 31... Qe7 {[%emt 0:06:51]} ({Black should play} 31... Rf8 $1 $11) 32. Qxf5 $14 {[%emt 0:02:19] White is more active.} Rc7 {[%emt 0:01:25]} (32... Ra8 $14) 33. Qxh5 {[%emt 0:06:38]} Re3 {[%emt 0:02:03]} 34. Qf5 {[%emt 0:01:32]} Bd4 {[%emt 0:16:09]} (34... Qe4 $16 35. Qxe4 (35. Qxf6 {leads to mate.} Qxd3+ 36. Rxd3 Re1+) 35... Rxe4) 35. Rc1 {[%emt 0:03:24]} Rxc1+ {[%emt 0:07:48]} 36. Nxc1 {[%emt 0:00:42]} Qe4+ {[%emt 0:00:14]} (36... Qf7 {is a better defense.} 37. Qxf7+ Kxf7) 37. Qxe4 $18 {[%emt 0:00:07]} Rxe4 {[%emt 0:00:02][%mdl 4096] Endgame KRB-KRN} 38. Nd3 {[%emt 0:01:07]} (38. Rc2 $18) 38... Bf6 $16 {[%emt 0:01:00]} 39. Kc2 {[%emt 0:00:53]} Rd4 {[%emt 0:00:10]} 40. Rd2 {[%emt 0:01:13]} (40. Re2 $142) 40... Rxd5 {[%emt 0:00:12]} (40... Kf7 $142 41. Re2 Rxd5) 41. b4 {[%emt 0:00:43]} Rb5 {[%emt 0:02:26] [#]} (41... Kf8 $16 {was necessary.} 42. Nc1 Rf5) 42. Kb3 $1 $18 {[%emt 0:00:22]} Kf7 {[%emt 0:00:13]} 43. Kc4 {[%emt 0:00:23]} Rb6 {[%emt 0:00:20]} (43... Rh5 $142 44. b5 Rh8) 44. b5 {[%emt 0:00:25]} Ke7 $2 {[%emt 0:00:16]} (44... Ke6 {was called for.} 45. Nb4 Rb8) 45. Nb4 {[%emt 0:00:20] White wants to mate with Nd5+.} Kd7 {[%emt 0:00:34]} 46. Nd5 {[%emt 0:00:11]} Rb8 {[%emt 0:00:06]} 47. Nxf6+ {[%emt 0:00:38]} gxf6 {[%emt 0:00:01] KR-KR} 48. Rg2 {[%emt 0:01:35]} Ke6 {[%emt 0:00:36]} (48... Rh8 $142 49. Rg7+ Kd8) 49. h4 {[%emt 0:01:15][%cal Bh2h4,Bh4h5][%mdl 32] Strongly threatening h5.} Kf5 {[%emt 0:00:27]} 50. h5 {[%emt 0:00:11]} Kxf4 {[%emt 0:00:09]} 51. h6 {[%emt 0:00:09] h7 would kill now.} Rh8 {[%emt 0:00:11] Against h7} 52. b6 {[%emt 0:00:39][%cal Bb5b6,Bb6b7][%mdl 32] White mates.} Rxh6 {[%emt 0:00:13]} 53. b7 {[%emt 0:00:10]} Rh8 {[%emt 0:00:04]} 54. Kd5 {[%emt 0:00:12]} Rb8 {[%emt 0:01:13]} 55. Rg7 {[%emt 0:00:13]} ({Worse is} 55. Kxd6 Rxb7 56. Rf2+ Ke4 $11) 55... Ke3 {[%emt 0:00:09]} 56. Kxd6 {[%emt 0:00:09]} f5 {[%emt 0:00:12]} 57. Kc7 {[%emt 0:00:06]} Rxb7+ {[%emt 0:00:03]} 58. Kxb7 {[%emt 0:00:06] White used his chance.   Weighted Error Value: White=0.16 (very precise) /Black=0.44} 1-0

[Event "11th Festival Palmanova-A 2022"]
[Site "Strassoldo"]
[Date "2022.12.10"]
[Round "4.12"]
[White "Savanovic, Aleksandar"]
[Black "Laco, Giuseppe"]
[Result "1-0"]
[ECO "B23"]
[WhiteElo "2365"]
[BlackElo "1913"]
[Annotator "TA"]
[PlyCount "49"]
[EventDate "2022.12.08"]
[EventType "swiss"]
[EventCountry "ITA"]
[SourceTitle "playchess.com"]
[Source "ChessBase"]
[SourceQuality "1"]
[TimeControl "5400+30"]

{[%evp 9,49,27,58,49,45,39,46,28,66,80,74,72,79,72,176,169,177,181,182,169,169,188,185,169,169,169,169,169,169,169,302,293,289,203,313,312,306,315,340,337,594,591]} 1. e4 {[%emt 0:09:06]} c5 {[%emt 0:00:09]} 2. Nc3 {[%emt 0:00:05]} e6 {[%emt 0:00:07]} 3. g3 {[%emt 0:00:05]} Nc6 {[%emt 0:01:38]} 4. Bg2 {[%emt 0:00:07]} a6 {[%emt 0:00:42]} 5. Nge2 {[%emt 0:04:22]} Nd4 {[%emt 0:03:48]} 6. Nxd4 {[%emt 0:03:59] B23: Closed Sicilian: Lines without g3.} cxd4 {[%emt 0:00:09]} 7. Ne2 {[%emt 0:00:05]} e5 {[%emt 0:01:53]} 8. d3 {[%emt 0:00:57] White is slightly better.} Ne7 {[%emt 0:00:57]} 9. c3 {[%emt 0:01:42][%cal Bc2c3,Bc3d4,Bd4d5][%mdl 32]} Nc6 {[%emt 0:00:28]} 10. cxd4 {[%emt 0:00:13] [#]} Bb4+ $146 {[%emt 0:03:12]} ({Predecessor:} 10... exd4 11. O-O Bc5 12. a3 a5 13. Nf4 O-O 14. Nd5 d6 15. f4 f5 16. Bd2 a4 {1-0 (38) Draskovic,L (2503)-Makolli,P (2247) Chennai 2022}) 11. Bd2 {[%emt 0:00:09]} Qa5 {[%emt 0:00:38]} (11... Bxd2+ $16 12. Qxd2 exd4) 12. d5 $18 {[%emt 0:00:36]} Nd4 {[%emt 0:01:34]} 13. Nxd4 {[%emt 0:00:07]} exd4 {[%emt 0:01:17]} 14. a3 {[%emt 0:00:11]} Bxd2+ {[%emt 0:03:43]} 15. Qxd2 {[%emt 0:00:04]} Qb6 {[%emt 0:01:58]} 16. Qb4 {[%emt 0:13:26]} Qxb4+ {[%emt 0:05:17]} 17. axb4 {[%emt 0:00:04]} d6 {[%emt 0:00:23]} 18. Kd2 {[%emt 0:00:37]} Bd7 {[%emt 0:01:21]} 19. Rhc1 {[%emt 0:00:10]} Bb5 {[%emt 0:09:49]} (19... h5 $142 20. Rc7 h4) 20. Rc7 {[%emt 0:00:32]} Rb8 {[%emt 0:01:15]} 21. Rac1 {[%emt 0:00:25] Black must now prevent Bh3.} O-O {[%emt 0:00:26]} (21... Bd7 {was necessary.} 22. f4 Kd8) 22. Bh3 {[%emt 0:00:07]} Rfd8 {[%emt 0:03:41]} 23. Re7 {[%emt 0:03:49]} Be8 {[%emt 0:02:06]} 24. Rcc7 {[%emt 0:01:05][%cal Oh3e6] Be6! is the strong threat.} b5 $2 {[%emt 0:01:01] [#]} (24... Kf8 25. Kc2 Ba4+ 26. Kb1 Be8) 25. Be6 $1 {[%emt 0:01:08][%mdl 512] White took control after the opening.   Weighted Error Value: White=0.10 (very precise) /Black=0.43} 1-0

[Event "11th Festival Palmanova-A 2022"]
[Site "Strassoldo"]
[Date "2022.12.10"]
[Round "5.1"]
[White "Loiacono, Leonardo"]
[Black "Damia, Angelo"]
[Result "1/2-1/2"]
[WhiteElo "2271"]
[BlackElo "2192"]
[Annotator "TA"]
[PlyCount "43"]
[EventDate "2022.12.08"]
[EventType "swiss"]
[EventCountry "ITA"]
[SourceTitle "playchess.com"]
[Source "ChessBase"]
[SourceQuality "1"]
[TimeControl "5400+30"]

{[%evp 12,14,22,0,0]} 1. d4 {[%emt 0:00:01]} d5 {[%emt 0:00:28]} 2. c4 {[%emt 0:00:03]} e6 {[%emt 0:00:09]} 3. Nc3 {[%emt 0:00:03]} Nf6 {[%emt 0:00:03]} 4. Nf3 {[%emt 0:00:03]} c6 {[%emt 0:00:06]} 5. e3 {[%emt 0:00:05]} Bd6 {[%emt 0:00:07]} 6. Qc2 {[%emt 0:00:04]} Nbd7 {[%emt 0:00:05]} 7. b3 {[%emt 0:00:04]} O-O {[%emt 0:02:32] [#] An uneventful encounter.  D45: Semi-Slav: 5 e3.} {Predecessor:} 8. Be2 $146 b6 9. O-O Bb7 10. Bb2 Qe7 11. Rad1 Rad8 12. Rfe1 Rfe8 13. Bf1 Nf8 14. g3 Bb4 15. a3 Bxc3 16. Qxc3 dxc4 17. Qxc4 c5 18. Ne5 cxd4 19. Bxd4 Rc8 20. Qa4 Ng6 21. Qxa7 Nxe5 22. Bxe5 {½-½ (61) Xiong,J (2691)-Shankland,S (2720) chess24.com INT 2022} 1/2-1/2